bitfinex/quotes_ETHUSD_20241023
["timestamp","ask_amount","ask_price","bid_price","bid_amount"]
[1729662662092,5.13068677,2613.1,2612.6,4.210858]
[1729662662295,4.68640677,2613.2,2612.8,3.4445]
[1729662663589,3.44392,2613.3,2612.9,0.7715]
[1729662663790,5.13032677,2613.3,2612.9,0.7715]
[1729662664032,1.68640677,2613.1,2612.7,4.2162]
[1729662664338,1.68640677,2613.0,2612.7,4.2162]
[1729662664635,3.0,2613.4,2612.5,0.7715]
[1729662664636,1.68640677,2612.8,2612.5,0.7715]
[1729662664794,1.68640677,2612.8,2612.4,3.44502]
[1729662664991,1.68640677,2612.8,2612.4,4.211199]
[1729662665194,2.49530677,2612.9,2612.5,3.44496]
[1729662665832,0.8089,2612.9,2612.5,3.44496]
[1729662666035,2.49530677,2612.9,2612.5,3.44496]
[1729662667198,5.93975677,2612.9,2612.4,0.766179]
[1729662667407,5.93975677,2612.9,2612.4,4.211279]
[1729662668341,4.25335,2612.9,2612.4,0.766179]
[1729662668627,4.25335,2612.9,2612.5,3.44494]
[1729662669428,4.25335,2612.9,2612.4,0.766179]
[1729662669735,5.93975677,2612.9,2612.4,4.211269]
[1729662672259,3.44473,2612.7,2612.3,0.7715]
[1729662672404,3.44491,2612.6,2612.1,0.8012]
[1729662672603,3.44491,2612.6,2612.1,4.24668]
[1729662673004,3.44491,2612.6,2612.1,5.93308677]
[1729662673199,3.44473,2612.7,2612.2,3.44537]
[1729662673508,1.68640677,2612.8,2612.3,3.44521]
[1729662673509,3.44466,2612.8,2612.3,3.44521]
[1729662674699,5.13106677,2612.8,2612.3,3.44521]
[1729662674906,3.44466,2612.8,2612.3,3.44521]
[1729662675142,4.25344,2612.9,2612.3,3.44516]
[1729662675439,5.13066677,2613.1,2612.6,3.44477]
[1729662675615,5.13065677,2613.1,2612.6,3.44477]
[1729662676214,5.13065677,2613.1,2612.5,3.44486]
[1729662676414,8.57496677,2613.1,2612.5,3.44486]
[1729662676635,1.68640677,2613.0,2612.5,3.44486]
[1729662676840,3.44433,2613.0,2612.5,3.44486]
[1729662677005,3.44425,2613.1,2612.5,6.12110867]
[1729662677341,5.13065677,2613.1,2612.6,4.24596]
[1729662679155,5.13072677,2613.0,2612.6,0.8012]
[1729662679361,5.13085677,2612.9,2612.6,0.8012]
[1729662679531,5.13085677,2612.9,2612.4,3.44509]
[1729662679532,8.57537677,2612.9,2612.4,4.24629]
[1729662679737,2.50590677,2612.8,2612.4,4.24629]
[1729662680042,1.68640677,2612.6,2612.2,0.8012]
[1729662680241,4.26414,2612.8,2612.3,3.44522]
[1729662680445,7.7088,2612.8,2612.3,3.44522]
[1729662681034,9.39520677,2612.8,2612.3,3.44522]
[1729662682349,7.70879,2612.8,2612.3,3.44522]
[1729662682545,5.95054677,2612.8,2612.3,3.44522]
[1729662682878,5.13112677,2612.7,2612.2,4.24657]
[1729662683364,3.44472,2612.7,2612.2,4.24657]
[1729662685734,5.95054677,2612.8,2612.2,7.69184]
[1729662685932,3.44473,2612.7,2612.2,6.95101626]
[1729662686373,3.44473,2612.7,2612.2,5.26460949]
[1729662687676,3.44473,2612.7,2612.2,6.95101626]
[1729662689388,3.44473,2612.7,2612.2,5.26460949]
[1729662689881,3.44485,2612.6,2612.2,4.24647]
[1729662690052,3.44485,2612.6,2612.2,0.8012]
[1729662691480,3.44485,2612.6,2612.0,5.02698813]
[1729662691481,5.13125677,2612.6,2612.0,5.02698813]
[1729662691781,3.44513,2612.4,2612.0,5.02698813]
[1729662692142,3.44513,2612.4,2612.0,6.7133949]
[1729662692344,3.44513,2612.4,2612.0,4.22384]
[1729662692761,3.44513,2612.4,2612.0,5.91024677]
[1729662693657,3.44497,2612.5,2612.0,5.91024677]
[1729662693987,3.44497,2612.5,2612.0,6.7133949]
[1729662694997,3.44497,2612.5,2612.0,5.91024677]
[1729662696394,3.4449,2612.6,2612.1,3.44539]
[1729662696894,6.88983,2612.6,2612.1,3.44539]
[1729662697065,3.4449,2612.6,2612.1,3.44539]
[1729662697275,3.44499,2612.5,2612.1,3.44539]
[1729662700257,5.13112677,2612.7,2612.1,3.44539]
[1729662700453,3.4449,2612.6,2612.1,3.44539]
[1729662701601,5.13130677,2612.6,2612.1,3.44539]
[1729662701799,3.4449,2612.6,2612.1,3.44539]
[1729662702787,5.13112677,2612.7,2612.0,3.60096267]
[1729662702999,3.44504,2612.5,2612.0,3.2678549]
[1729662703299,3.44504,2612.5,2612.0,2.46470677]
[1729662703499,3.44504,2612.5,2612.0,0.7783]
[1729662703707,3.44504,2612.5,2612.0,5.02706813]
[1729662703910,6.8901,2612.5,2612.0,4.22392]
[1729662704117,1.68640677,2612.3,2612.0,0.7783]
[1729662704326,1.68640677,2612.1,2611.7,0.80314813]
[1729662704470,5.13192677,2612.1,2611.8,3.22]
[1729662704861,6.89058,2612.3,2611.8,3.22]
[1729662704972,6.89058,2612.3,2611.7,6.89192]
[1729662705172,6.89058,2612.3,2611.7,3.44596]
[1729662705173,5.13177677,2612.2,2611.7,3.44596]
[1729662705793,1.68640677,2612.2,2611.8,3.44589]
[1729662706016,5.13163677,2612.3,2611.8,3.44589]
[1729662706393,8.57697677,2612.3,2611.8,3.44589]
[1729662706609,5.13163677,2612.3,2611.8,3.44589]
[1729662710231,1.68640677,2612.2,2611.8,3.44589]
[1729662710796,5.13178677,2612.2,2611.7,3.44596]
[1729662710992,1.68640677,2612.1,2611.7,3.44596]
[1729662711229,5.13192677,2612.1,2611.7,3.44596]
[1729662712849,3.44552,2612.1,2611.7,3.44596]
[1729662715813,5.13177677,2612.2,2611.7,3.44596]
[1729662718735,5.13164677,2612.3,2611.8,3.44583]
[1729662718931,5.13164677,2612.3,2611.8,3.44577]
[1729662719138,5.13164677,2612.3,2611.9,0.7927]
[1729662720276,1.68640677,2612.2,2611.9,0.7927]
[1729662720571,5.13164677,2612.3,2611.9,0.7927]
[1729662721662,2.51240677,2612.4,2611.9,4.23839]
[1729662721871,1.68640677,2612.3,2611.9,4.23836]
[1729662722673,3.44526,2612.3,2611.9,4.23836]
[1729662722833,5.13166677,2612.3,2611.9,4.23836]
[1729662724355,5.13166677,2612.3,2611.9,0.7927]
[1729662727550,5.13166677,2612.3,2611.9,4.23846]
[1729662727751,3.44526,2612.3,2611.9,4.23846]
[1729662731190,5.90891677,2612.4,2611.9,4.23846]
[1729662731399,3.8151,2612.6,2611.9,1.64145481]
[1729662731569,4.68640677,2612.5,2612.0,0.7896]
[1729662731769,4.68640677,2612.5,2612.0,4.23515]
[1729662731770,8.13143677,2612.5,2612.0,4.23515]
[1729662731998,3.0,2612.5,2612.1,4.23501]
[1729662732156,6.44473,2612.7,2612.2,3.44525]
[1729662732351,3.0,2612.7,2612.2,3.44525]
[1729662732551,1.68640677,2612.5,2612.1,0.7896]
[1729662732794,5.13146677,2612.5,2612.1,0.7896]
[1729662733381,1.68640677,2612.3,2611.9,0.7896]
[1729662733585,1.68640677,2612.3,2611.9,4.23533]
[1729662733894,5.13164677,2612.3,2611.9,0.7896]
[1729662734054,1.68640677,2612.1,2611.8,0.80314813]
[1729662734255,1.68640677,2612.1,2611.7,1.59274813]
[1729662734455,5.13192677,2612.1,2611.7,0.7896]
[1729662735104,5.13192677,2612.1,2611.7,4.23561]
[1729662735272,1.68640677,2612.1,2611.7,4.23561]
[1729662735474,5.13191677,2612.1,2611.7,0.7896]
[1729662736296,5.13191677,2612.1,2611.7,5.03875813]
[1729662736485,0.8151,2612.2,2611.7,0.7896]
[1729662736787,5.13164677,2612.3,2611.8,3.44589]
[1729662736991,6.4451,2612.5,2612.0,3.44561]
[1729662737315,5.13165677,2612.3,2611.9,0.7896]
[1729662737470,4.2605,2612.2,2611.8,0.80314813]
[1729662737669,4.2605,2612.2,2611.7,5.03872813]
[1729662738707,4.2605,2612.2,2611.7,4.23558]
[1729662738911,4.2605,2612.2,2611.7,5.03872813]
[1729662740015,4.2605,2612.2,2611.7,4.23558]
[1729662741280,4.2605,2612.2,2611.7,5.3730349]
[1729662742905,0.8151,2612.4,2612.0,0.7896]
[1729662743077,1.68640677,2612.3,2612.0,0.7896]
[1729662743282,5.13164677,2612.3,2611.9,3.44575]
[1729662743518,5.13164677,2612.3,2611.8,4.2354]
[1729662744084,3.44524,2612.3,2611.8,4.2354]
[1729662744285,3.44524,2612.3,2611.8,5.48656839]
[1729662745424,6.44506,2612.5,2612.0,4.27092]
[1729662745425,3.44505,2612.5,2612.0,4.27092]
[1729662745640,5.13145677,2612.5,2612.0,4.27092]
[1729662745989,5.13145677,2612.5,2612.0,5.07406813]
[1729662746658,3.44505,2612.5,2612.1,3.44548]
[1729662746856,5.13145677,2612.5,2612.1,4.24862813]
[1729662747146,5.13145677,2612.5,2612.1,3.44548]
[1729662748120,5.13145677,2612.5,2612.0,5.07406813]
[1729662748326,1.68640677,2612.4,2612.0,5.07406813]
[1729662748645,6.8901,2612.5,2612.0,5.07406813]
[1729662748646,5.13145677,2612.5,2612.0,5.07406813]
[1729662748846,5.13145677,2612.5,2612.0,6.17150119]
[1729662749205,1.68640677,2612.5,2612.1,3.44548]
[1729662749739,5.13126677,2612.6,2612.1,3.44548]
[1729662750108,1.68640677,2612.5,2612.1,3.44548]
[1729662750512,1.68640677,2612.5,2612.1,3.87632292]
[1729662750711,5.13138677,2612.5,2612.1,3.87632292]
[1729662751035,1.68640677,2612.5,2612.1,3.87632292]
[1729662751551,5.13137677,2612.5,2612.1,3.87632292]
[1729662752223,3.0,2612.8,2611.8,4.54387142]
[1729662752224,3.7909,2612.1,2611.8,0.80314813]
[1729662752434,3.7909,2612.1,2611.5,0.80314813]
[1729662752435,1.68640677,2611.9,2611.5,0.80314813]
[1729662752763,3.4457,2612.0,2611.6,3.22]
[1729662752764,8.57784677,2612.0,2611.6,3.22]
[1729662753250,5.13210677,2612.0,2611.5,4.24940813]
[1729662753546,5.13210677,2612.0,2611.5,3.44626]
[1729662753776,6.89141,2612.0,2611.5,4.24940813]
[1729662754577,6.89141,2612.0,2611.5,3.44626]
[1729662755072,3.44576,2611.9,2611.5,0.80314813]
[1729662755283,0.7909,2612.1,2611.4,6.33617083]
[1729662755284,0.7909,2611.7,2611.4,0.80314813]
[1729662755434,0.7909,2611.7,2611.3,5.07489813]
[1729662756468,5.92333677,2611.7,2611.3,5.07489813]
[1729662756674,4.23693,2611.7,2611.3,4.24959813]
[1729662756876,0.7909,2611.7,2611.3,6.9946128]
[1729662758479,3.44577,2611.9,2611.4,3.44641]
[1729662758677,4.23667,2611.9,2611.5,0.8253]
[1729662758971,5.92307677,2611.9,2611.5,0.8253]
[1729662759176,2.47730677,2611.9,2611.5,0.8253]
[1729662759330,3.44592,2611.8,2611.5,0.8253]
[1729662760052,5.92307677,2611.9,2611.5,0.8253]
[1729662760247,2.47730677,2611.9,2611.5,0.8253]
[1729662760560,3.44592,2611.8,2611.5,0.8253]
[1729662761161,0.7909,2611.9,2611.5,0.8253]
[1729662761688,3.44571,2612.0,2611.5,4.27152]
[1729662761871,3.44571,2612.0,2611.5,5.95792677]
[1729662762949,3.44578,2611.9,2611.5,1.87324753]
[1729662763153,3.44578,2611.9,2611.5,0.8253]
[1729662763679,3.44571,2612.0,2611.5,4.27157]
[1729662764187,5.13211677,2612.0,2611.5,4.27157]
[1729662764398,8.57782677,2612.0,2611.5,4.27157]
[1729662764551,1.68640677,2611.6,2611.3,0.80314813]
[1729662764756,5.13261677,2611.6,2611.1,3.44672]
[1729662765055,5.13271677,2611.5,2611.1,1.1412839]
[1729662765245,3.44631,2611.5,2611.0,0.8262]
[1729662765453,3.44631,2611.5,2611.0,1.62934813]
[1729662765653,3.44631,2611.5,2611.0,5.07618813]
[1729662765852,3.44631,2611.5,2611.0,4.27304]
[1729662766069,3.44631,2611.5,2611.0,5.95944677]
[1729662766272,0.8114,2611.6,2611.0,2.51260677]
[1729662766471,4.25759,2611.6,2611.1,4.12308649]
[1729662767301,5.94399677,2611.6,2611.1,4.12308649]
[1729662767670,4.25759,2611.6,2611.1,4.12308649]
[1729662768075,3.4463,2611.5,2611.1,4.12308649]
[1729662768680,0.8114,2611.6,2611.1,4.12308649]
[1729662768898,4.25763,2611.6,2611.1,4.12308649]
[1729662770315,3.44623,2611.6,2611.1,5.80949326]
[1729662770625,3.44623,2611.6,2611.1,5.80943326]
[1729662770626,3.44616,2611.6,2611.1,5.80943326]
[1729662770783,3.44616,2611.6,2611.2,0.66356333]
[1729662771119,3.44616,2611.6,2611.3,0.8262]
[1729662773175,3.44596,2611.8,2611.3,5.95908677]
[1729662773293,6.44584,2611.9,2611.3,5.95907677]
[1729662773488,3.4459,2611.8,2611.3,5.95907677]
[1729662773692,6.44584,2611.9,2611.4,0.66226401]
[1729662774548,3.44559,2612.1,2611.7,0.8262]
[1729662775053,3.44558,2612.1,2611.7,0.8262]
[1729662775523,5.94323677,2612.2,2611.7,4.27219]
[1729662775838,4.25683,2612.2,2611.7,4.27219]
[1729662776047,3.44551,2612.1,2611.7,0.8262]
[1729662776364,2.49780677,2612.2,2611.7,0.8262]
[1729662776365,5.49780677,2612.2,2611.7,0.8262]
[1729662776843,1.68640677,2612.1,2611.7,0.8262]
[1729662778343,5.13191677,2612.1,2611.7,0.8262]
[1729662778837,0.8114,2612.2,2611.7,0.8262]
[1729662779036,5.94319677,2612.2,2611.7,4.27222]
[1729662779339,1.68640677,2612.1,2611.7,4.27222]
[1729662780958,1.68640677,2612.0,2611.7,0.8262]
[1729662781233,1.68640677,2612.0,2611.6,3.44615]
[1729662781234,5.13204677,2612.0,2611.6,3.44615]
[1729662781441,1.68640677,2611.9,2611.6,3.44615]
[1729662782448,1.68640677,2612.1,2611.6,3.44606]
[1729662782737,1.70640677,2612.8,2611.6,3.44606]
[1729662782738,4.68640677,2612.4,2612.0,4.21787]
[1729662782943,8.13154677,2612.4,2612.0,0.7723]
[1729662783501,1.68640677,2612.3,2612.0,0.7723]
[1729662783732,4.68640677,2612.3,2612.0,0.7723]
[1729662785163,5.13154677,2612.4,2612.0,0.7723]
[1729662785616,1.68640677,2612.3,2612.0,0.7723]
[1729662787046,1.68640677,2612.4,2612.0,4.21792]
[1729662787229,5.88898677,2612.5,2612.0,4.21792]
[1729662787537,1.68640677,2612.4,2612.0,4.21792]
[1729662788229,5.13152677,2612.4,2612.0,0.7723]
[1729662788431,1.68640677,2612.3,2612.0,0.7723]
[1729662788620,1.68640677,2612.2,2612.0,0.7723]
[1729662788823,1.68640677,2612.2,2611.8,4.2181]
[1729662789156,1.68640677,2612.2,2611.9,3.44575]
[1729662789450,1.68640677,2612.2,2611.8,4.2181]
[1729662789942,1.68640677,2612.2,2611.9,3.44576]
[1729662790330,1.68640677,2612.2,2611.8,4.2181]
[1729662791447,5.13165677,2612.3,2611.8,4.2181]
[1729662791653,1.68640677,2612.2,2611.8,4.2181]
[1729662791862,5.13165677,2612.3,2611.8,4.2181]
[1729662792666,5.13165677,2612.3,2611.8,7.66393]
[1729662794345,5.13165677,2612.3,2611.7,3.44602]
[1729662794346,1.68640677,2612.1,2611.7,3.44602]
[1729662794588,1.68640677,2612.0,2611.7,3.44602]
[1729662794785,1.68640677,2612.1,2611.7,3.44602]
[1729662795111,2.47010677,2612.2,2611.8,3.44587]
[1729662796284,0.7837,2612.2,2611.8,3.44587]
[1729662796487,0.7837,2612.2,2611.8,3.44582]
[1729662797487,2.47010677,2612.2,2611.8,3.44582]
[1729662800580,2.47010677,2612.2,2611.9,3.44569]
[1729662800786,1.68640677,2612.3,2611.9,4.26629]
[1729662801186,2.47010677,2612.4,2611.9,4.26629]
[1729662801347,1.68640677,2612.3,2611.9,4.26629]
[1729662801747,1.68640677,2612.3,2612.0,3.44561]
[1729662804375,2.47010677,2612.4,2612.0,3.44561]
[1729662804594,1.68640677,2612.3,2612.0,3.44561]
[1729662804914,2.47010677,2612.4,2612.0,3.44555]
[1729662805812,2.47010677,2612.4,2612.1,3.44543]
[1729662806184,2.47010677,2612.4,2612.0,3.44555]
[1729662806709,2.47010677,2612.4,2612.0,6.8911]
[1729662807018,1.68640677,2612.4,2612.0,6.8911]
[1729662807724,5.46550677,2612.6,2612.2,3.4453]
[1729662808062,2.46550677,2612.6,2612.2,3.4453]
[1729662808264,0.59929368,2613.0,2612.2,3.4453]
[1729662808265,3.7791,2612.8,2612.3,3.44517]
[1729662808505,3.0,2612.8,2612.3,2.44350677]
[1729662808709,3.06480045,2613.0,2612.5,3.44485]
[1729662809071,2.46550677,2613.0,2612.6,3.44482]
[1729662810360,5.46550677,2613.0,2612.6,3.44482]
[1729662811363,2.46550677,2613.0,2612.7,3.44463]
[1729662812076,0.7791,2613.0,2612.7,3.44463]
[1729662812288,3.7791,2613.2,2612.8,3.44457]
[1729662812442,0.7791,2613.2,2612.7,5.55120977]
[1729662812646,0.7791,2613.2,2612.9,3.44444]
[1729662812877,0.7791,2613.4,2612.9,4.20146]
[1729662813189,0.7791,2613.6,2613.1,5.13050677]
[1729662813324,0.7791,2613.6,2613.1,3.4441]
[1729662813325,5.90902677,2613.6,2613.1,3.4441]
[1729662813524,5.90902677,2613.6,2613.2,4.20107]
[1729662813525,0.7791,2613.6,2613.2,4.20107]
[1729662813725,2.46550677,2613.8,2613.3,6.88775]
[1729662813954,2.46550677,2613.8,2613.4,3.44378]
[1729662813955,1.68640677,2613.8,2613.4,3.44378]
[1729662814171,5.12955677,2613.9,2613.4,3.44372]
[1729662814368,0.7791,2614.0,2613.3,3.44384]
[1729662814582,1.68640677,2613.9,2613.5,3.44364]
[1729662817173,1.68640677,2613.8,2613.3,3.44384]
[1729662817378,7.2221,2614.0,2613.3,6.88766]
[1729662817379,1.68640677,2613.7,2613.3,6.88766]
[1729662817895,1.68640677,2613.7,2613.4,3.44378]
[1729662818373,1.68640677,2613.7,2613.3,3.44382]
[1729662818546,2.46550677,2613.6,2613.3,3.44382]
[1729662819390,2.46550677,2613.6,2613.1,3.44409]
[1729662819391,1.68640677,2613.4,2613.1,3.44409]
[1729662819951,1.68640677,2613.5,2613.1,3.44409]
[1729662820946,1.68640677,2613.4,2612.9,7.64584]
[1729662821147,1.68640677,2613.4,2613.0,3.4443]
[1729662821395,1.68640677,2613.3,2612.9,4.20146]
[1729662821581,1.68640677,2613.3,2612.7,3.864793]
[1729662821582,1.68640677,2613.2,2612.8,3.44449]
[1729662822164,0.7879,2613.3,2612.8,3.44449]
[1729662822165,2.47430677,2613.3,2612.8,3.44449]
[1729662822489,2.47430677,2613.3,2612.7,4.656093]
[1729662822490,2.47430677,2613.3,2612.9,3.44442]
[1729662822693,2.47430677,2613.3,2613.0,3.4443]
[1729662822991,2.47430677,2613.5,2613.1,3.44417]
[1729662823197,2.47430677,2613.5,2613.1,4.23547]
[1729662823361,1.68640677,2613.4,2613.1,4.23547]
[1729662823851,1.68640677,2613.4,2613.1,3.44417]
[1729662824466,0.7879,2613.7,2613.3,3.44384]
[1729662824683,0.7879,2613.7,2613.4,3.44368]
[1729662824884,1.68640677,2613.6,2613.3,3.44392]
[1729662825099,0.7879,2613.7,2613.3,6.88784]
[1729662825528,1.68640677,2613.6,2613.4,3.44375]
[1729662825689,2.47430677,2613.7,2613.4,3.44375]
[1729662827484,1.68640677,2613.6,2613.4,3.44375]
[1729662827688,2.47430677,2613.7,2613.4,3.44375]
[1729662827885,1.68640677,2613.7,2613.4,3.44375]
[1729662829227,1.68640677,2613.7,2613.3,6.88775]
[1729662829405,1.68640677,2613.7,2613.3,7.90109398]
[1729662830052,1.68640677,2613.7,2613.3,4.45717398]
[1729662832353,1.68640677,2613.7,2613.4,3.44378]
[1729662832548,1.68640677,2613.7,2613.3,3.44383]
[1729662832750,1.68640677,2613.7,2613.3,6.88766]
[1729662833054,1.68640677,2613.7,2613.3,3.44383]
[1729662833565,1.68640677,2613.7,2613.3,6.88768]
[1729662833852,1.68640677,2613.7,2613.4,0.767898]
[1729662834950,4.68640677,2613.8,2613.4,0.767898]
[1729662835151,1.68640677,2613.8,2613.4,4.211658]
[1729662835380,4.23104,2613.9,2613.4,4.211658]
[1729662835381,1.68640677,2613.7,2613.4,4.211658]
[1729662835552,1.68640677,2613.8,2613.4,4.211658]
[1729662835866,1.68640677,2613.7,2613.4,4.211658]
[1729662837479,1.68640677,2613.7,2613.4,0.767898]
[1729662837632,1.68640677,2613.7,2613.3,3.44383]
[1729662838478,1.68640677,2613.6,2613.3,3.44383]
[1729662840171,1.68640677,2613.7,2613.3,3.44383]
[1729662840431,5.91744677,2613.9,2613.5,3.44364]
[1729662840783,0.7879,2613.9,2613.5,3.44358]
[1729662840981,4.68640677,2614.0,2613.6,4.22111]
[1729662841190,3.0,2614.0,2613.7,3.44339]
[1729662841342,5.51740677,2614.1,2613.7,3.44339]
[1729662841758,5.51740677,2614.1,2613.7,3.44332]
[1729662842908,0.831,2614.1,2613.8,3.44317]
[1729662843070,2.51740677,2614.1,2613.8,3.44317]
[1729662843586,1.68640677,2614.1,2613.8,3.44317]
[1729662844088,0.831,2614.3,2613.9,3.44309]
[1729662844290,0.831,2614.3,2613.7,2.16057389]
[1729662844291,4.27334,2614.5,2614.0,4.564989]
[1729662844611,0.831,2614.5,2614.1,3.44281]
[1729662844807,1.68640677,2614.4,2614.0,4.22068]
[1729662845005,1.68640677,2614.4,2614.0,4.22059]
[1729662845308,1.68640677,2614.4,2614.2,3.44272]
[1729662845662,1.68640677,2614.4,2614.0,4.22059]
[1729662845864,1.68640677,2614.4,2614.0,8.25416968]
[1729662846105,1.68640677,2614.4,2614.1,3.44286]
[1729662846269,0.831,2614.5,2614.0,4.81127968]
[1729662846468,2.51740677,2614.5,2614.1,3.44278]
[1729662846672,2.51740677,2614.5,2614.1,4.43682665]
[1729662847069,1.68640677,2614.4,2614.1,0.99404665]
[1729662847392,1.68640677,2614.4,2614.0,4.81135968]
[1729662847561,1.68640677,2614.4,2614.1,3.44286]
[1729662848605,1.68640677,2614.4,2614.0,1.36839968]
[1729662848778,1.68640677,2614.4,2614.0,4.81138968]
[1729662849873,3.44171,2615.0,2614.3,1.68640677]
[1729662850187,5.12814677,2615.0,2614.4,0.7641]
[1729662850391,5.12814677,2615.0,2614.5,3.44233]
[1729662850611,1.68640677,2615.0,2614.5,3.44233]
[1729662850778,1.68640677,2615.0,2614.6,3.4422]
[1729662851491,4.68640677,2615.0,2614.6,3.4422]
[1729662851713,5.43680677,2615.1,2614.7,3.442]
[1729662851905,5.43680677,2615.1,2614.7,3.78622]
[1729662852301,3.7504,2615.1,2614.7,3.78622]
[1729662852814,3.7504,2615.1,2614.7,0.34422]
[1729662853336,7.19196,2615.1,2614.7,0.34422]
[1729662853637,3.7504,2615.1,2614.7,0.34422]
[1729662853837,0.7504,2615.1,2614.7,0.34422]
[1729662854048,7.19196,2615.1,2614.7,0.34422]
[1729662855627,3.7504,2615.1,2614.7,3.78628]
[1729662855813,0.7504,2615.1,2614.8,0.722841]
[1729662856140,4.19197,2615.1,2614.8,0.722841]
[1729662856504,4.19197,2615.1,2614.6,3.44214]
[1729662857110,4.19197,2615.1,2614.6,3.44213]
[1729662857655,4.19197,2615.1,2614.6,6.88426]
[1729662857941,4.19197,2615.1,2614.6,3.44213]
[1729662859467,3.44168,2615.0,2614.5,3.44233]
[1729662859617,3.44168,2615.0,2614.6,4.26599897]
[1729662860364,4.19195,2615.1,2614.6,7.70811897]
[1729662860562,4.19195,2615.1,2614.6,4.26592897]
[1729662860752,4.19195,2615.1,2614.7,0.4265929]
[1729662861571,0.7504,2615.1,2614.7,0.4265929]
[1729662861753,3.44138,2615.3,2614.8,4.20597]
[1729662862063,3.44138,2615.3,2614.8,0.7641]
[1729662862064,3.44142,2615.2,2614.8,0.7641]
[1729662862375,3.44142,2615.2,2614.9,0.46327629]
[1729662863369,3.44138,2615.3,2614.9,0.46327629]
[1729662863676,4.19156,2615.4,2614.9,3.90507629]
[1729662863966,3.4413,2615.3,2614.9,0.46327629]
[1729662864130,3.4413,2615.3,2615.0,0.81111663]
[1729662864820,0.7504,2615.4,2615.1,3.44153]
[1729662865026,3.44109,2615.5,2615.1,4.22003]
[1729662865228,4.26438,2615.6,2615.1,0.7785]
[1729662865427,4.26438,2615.6,2615.1,1.20604969]
[1729662865653,3.44111,2615.5,2615.1,1.20604969]
[1729662866788,0.8234,2615.6,2615.1,1.20604969]
[1729662866990,3.44084,2615.7,2615.2,6.88269]
[1729662867166,3.44084,2615.7,2615.3,0.80887397]
[1729662867872,0.8234,2615.8,2615.3,4.25008397]
[1729662868176,4.2641,2615.8,2615.3,4.25008397]
[1729662868389,3.44081,2615.7,2615.3,0.80887397]
[1729662870158,4.2641,2615.8,2615.3,4.25014397]
[1729662870360,4.2641,2615.8,2615.4,0.7691484]
[1729662870682,3.4405,2615.9,2615.5,0.7785]
[1729662871186,0.8234,2616.0,2615.5,0.7785]
[1729662871394,3.0,2616.2,2615.6,3.93975284]
[1729662871687,3.44023,2616.1,2615.6,3.93967284]
[1729662871847,3.44023,2616.1,2615.7,3.44074]
[1729662872285,3.44023,2616.1,2615.6,3.93967284]
[1729662872486,3.44023,2616.1,2615.7,0.47181728]
[1729662873256,3.44037,2616.0,2615.7,0.47181728]
[1729662873460,3.44023,2616.1,2615.7,0.47181728]
[1729662873864,6.88057,2616.1,2615.7,0.47181728]
[1729662874162,3.44023,2616.1,2615.7,0.47181728]
[1729662874364,1.68492388,2616.0,2615.8,0.39126173]
[1729662874559,5.12515388,2616.1,2615.8,0.39126173]
[1729662874772,3.44037,2616.0,2615.8,0.39126173]
[1729662874973,8.56549388,2616.1,2615.5,4.21951]
[1729662875370,5.12515388,2616.1,2615.6,3.44087]
[1729662875881,3.44023,2616.1,2615.6,3.44087]
[1729662876283,8.56546388,2616.1,2615.6,3.44087]
[1729662876453,3.44023,2616.1,2615.6,3.44087]
[1729662876654,3.44023,2616.1,2615.7,0.59042939]
[1729662877304,5.12515388,2616.1,2615.7,0.59042939]
[1729662878389,5.12529388,2616.0,2615.7,0.59042939]
[1729662878586,3.44037,2616.0,2615.7,0.59042939]
[1729662880290,5.12515388,2616.1,2615.7,0.59042939]
[1729662882757,1.68492388,2616.0,2615.7,0.59042939]
[1729662883065,5.12515388,2616.1,2615.7,0.59042939]
[1729662884158,5.12515388,2616.1,2615.6,3.44087]
[1729662884655,8.56545388,2616.1,2615.6,3.44087]
[1729662885193,5.12515388,2616.1,2615.6,3.44087]
[1729662886241,5.12515388,2616.1,2615.6,6.88167]
[1729662886443,5.12515388,2616.1,2615.6,3.4408]
[1729662886614,5.12515388,2616.1,2615.6,4.37532739]
[1729662887145,5.12515388,2616.1,2615.7,0.8205]
[1729662887803,1.68492388,2616.0,2615.7,0.8205]
[1729662888639,5.12515388,2616.1,2615.7,0.8205]
[1729662889014,5.12515388,2616.1,2615.7,4.26123]
[1729662889429,5.12515388,2616.1,2615.7,5.12488574]
[1729662890024,5.12515388,2616.1,2615.7,4.26123]
[1729662891554,1.68492388,2616.1,2615.8,3.44062]
[1729662891727,5.12490388,2616.3,2615.7,5.94615388]
[1729662892073,5.12490388,2616.3,2616.0,3.44035]
[1729662892074,1.68492388,2616.3,2616.0,3.44035]
[1729662892728,1.68492388,2616.3,2615.8,4.26105]
[1729662892939,1.68492388,2616.3,2615.9,0.770171]
[1729662894376,1.68492388,2616.1,2615.9,0.770171]
[1729662894718,1.68492388,2616.2,2615.9,0.770171]
[1729662896017,5.12502388,2616.2,2615.9,0.770171]
[1729662896217,1.68492388,2616.2,2615.9,0.770171]
[1729662898119,5.12505388,2616.2,2615.9,0.770171]
[1729662900467,5.12515388,2616.1,2615.9,0.770171]
[1729662900620,5.12515388,2616.1,2615.8,0.8205]
[1729662900823,3.44023,2616.1,2615.8,0.8205]
[1729662901766,5.12515388,2616.1,2615.8,0.8205]
[1729662903172,3.44023,2616.1,2615.8,0.8205]
[1729662903349,3.44023,2616.1,2615.4,1.68492388]
[1729662903350,3.4407,2615.8,2615.4,0.801]
[1729662903668,5.12541388,2615.9,2615.5,6.42101]
[1729662903966,5.12541388,2615.9,2615.4,5.010491]
[1729662904120,3.44049,2615.9,2615.4,5.010491]
[1729662904742,5.12541388,2615.9,2615.4,5.010491]
[1729662905579,3.44049,2615.9,2615.4,1.569341]
[1729662905739,9.33526388,2616.1,2615.5,10.3630041]
[1729662906628,3.44036,2616.0,2615.5,6.9219941]
[1729662906841,5.12528388,2616.0,2615.5,6.9219941]
[1729662907326,3.44036,2616.0,2615.5,6.9219941]
[1729662908136,4.21002,2616.1,2615.6,3.44087]
[1729662908338,5.89494388,2616.1,2615.6,4.73339455]
[1729662908725,3.44039,2616.0,2615.6,4.73339455]
[1729662910535,3.44039,2616.0,2615.6,1.29252455]